bitfinex/quotes_BTCUSD_20250313
["timestamp","ask_amount","ask_price","bid_price","bid_amount"]
[1741899090945,0.012424,80487.0,80481.0,0.268928]
[1741899091100,0.012424,80487.0,80481.0,0.260928]
[1741899091310,0.012424,80487.0,80486.0,0.003]
[1741899091715,0.26091,80488.0,80486.0,0.003]
[1741899091911,0.02459022,80490.0,80483.0,0.012424]
[1741899092135,0.02459022,80490.0,80486.0,0.006]
[1741899092318,0.012424,80487.0,80481.0,0.003]
[1741899092515,0.248502,80483.0,80481.0,0.003]
[1741899092753,0.248502,80483.0,80480.0,0.0001689]
[1741899093372,0.248493,80486.0,80480.0,0.0001689]
[1741899093572,0.248493,80486.0,80481.0,0.012425]
[1741899093943,0.248486,80488.0,80483.0,0.260921]
[1741899094155,0.248489,80487.0,80483.0,0.012424]
[1741899094382,0.248489,80487.0,80480.0,0.0061689]
[1741899094579,0.248489,80487.0,80480.0,0.0001689]
[1741899094781,0.248503,80482.0,80480.0,0.0041689]
[1741899095228,0.248503,80482.0,80481.0,0.006]
[1741899095609,0.248503,80482.0,80480.0,0.0031689]
[1741899096336,0.248503,80482.0,80480.0,0.0001689]
[1741899096531,0.248503,80482.0,80481.0,0.004]
[1741899097706,0.248503,80482.0,80480.0,0.0001689]
[1741899097900,0.248503,80482.0,80481.0,0.01411177]
[1741899098718,0.248503,80482.0,80480.0,0.0031689]
[1741899098719,0.012425,80481.0,80480.0,0.0001689]
[1741899098873,0.012425,80481.0,80480.0,0.0061689]
[1741899100291,0.012425,80481.0,80480.0,0.0001689]
[1741899101217,0.012425,80481.0,80480.0,0.0051689]
[1741899101624,0.248503,80482.0,80480.0,0.0051689]
[1741899101832,0.248503,80482.0,80480.0,0.0081689]
[1741899102133,0.248503,80482.0,80481.0,0.00883177]
[1741899103280,0.249503,80482.0,80481.0,0.00883177]
[1741899103519,0.001,80482.0,80481.0,0.05483177]
[1741899103765,0.001,80482.0,80481.0,0.06725677]
[1741899103766,0.11241932,80482.0,80481.0,0.06725677]
[1741899104035,0.11241932,80482.0,80481.0,0.07125677]
[1741899105038,0.11141932,80482.0,80481.0,0.07125677]
[1741899105419,0.11141932,80482.0,80481.0,0.06083177]
[1741899106057,0.11724608,80482.0,80481.0,0.06083177]
[1741899106668,0.00582676,80482.0,80481.0,0.06083177]
[1741899106875,0.248496,80485.0,80481.0,0.06083177]
[1741899107051,0.00583092,80482.0,80481.0,0.048]
[1741899107258,0.0003378,80486.0,80484.0,0.012424]
[1741899107466,0.0003378,80486.0,80483.0,0.248497]
[1741899107681,0.0003378,80486.0,80485.0,0.012424]
[1741899107878,0.0003378,80486.0,80485.0,0.093324]
[1741899108716,0.0003378,80486.0,80483.0,0.006]
[1741899109036,0.260917,80485.0,80480.0,0.0001689]
[1741899109650,0.248493,80485.0,80480.0,0.0001689]
[1741899109851,0.248505,80482.0,80480.0,0.0001689]
[1741899111485,0.248505,80482.0,80480.0,0.0061689]
[1741899111733,0.248505,80482.0,80480.0,0.0071689]
[1741899111925,0.248496,80484.0,80480.0,0.0071689]
[1741899112106,0.248501,80483.0,80480.0,0.0071689]
[1741899112604,0.248501,80483.0,80480.0,0.0061689]
[1741899113042,0.248504,80482.0,80480.0,0.0061689]
[1741899113168,0.248504,80482.0,80480.0,0.0071689]
[1741899113582,0.248501,80483.0,80480.0,0.0011689]
[1741899114192,0.248501,80483.0,80480.0,0.0071689]
[1741899114410,0.248501,80483.0,80480.0,0.0061689]
[1741899114605,0.248496,80484.0,80480.0,0.0061689]
[1741899114941,0.248496,80484.0,80480.0,0.0071689]
[1741899115514,0.248496,80484.0,80480.0,0.0001689]
[1741899115861,0.248496,80484.0,80480.0,0.0011689]
[1741899116274,0.0003378,80486.0,80485.0,0.260917]
[1741899117847,0.0003378,80486.0,80485.0,0.395317]
[1741899118250,0.0003378,80486.0,80485.0,0.541317]
[1741899118455,0.0003378,80486.0,80485.0,0.55585785]
[1741899118616,0.0003378,80486.0,80485.0,0.40985785]
[1741899119245,1.2e-07,80488.0,80487.0,0.565911]
[1741899119536,1.2e-07,80488.0,80487.0,0.70985185]
[1741899120727,1.2e-07,80488.0,80487.0,0.85589185]
[1741899121176,1.2e-07,80488.0,80487.0,0.90589185]
[1741899121630,1.2e-07,80488.0,80487.0,0.91189185]
[1741899121870,1.2e-07,80488.0,80487.0,0.86789185]
[1741899122050,1.2e-07,80488.0,80487.0,0.91789185]
[1741899122355,0.0003378,80512.0,80511.0,0.565833]
[1741899122356,6e-07,80512.0,80511.0,0.565833]
[1741899122490,6e-07,80512.0,80511.0,0.97537484]
[1741899122765,9.35e-05,80512.0,80511.0,0.85067385]
[1741899123228,9.35e-05,80512.0,80511.0,0.536133]
[1741899123672,9.35e-05,80512.0,80511.0,0.542133]
[1741899124024,9.35e-05,80512.0,80511.0,0.523713]
[1741899124229,9.35e-05,80512.0,80511.0,0.529713]
[1741899124430,9.35e-05,80512.0,80511.0,0.536133]
[1741899124632,9.35e-05,80512.0,80511.0,0.390133]
[1741899124844,9.35e-05,80512.0,80511.0,0.400133]
[1741899127227,9.35e-05,80512.0,80511.0,0.41467385]
[1741899127987,9.35e-05,80512.0,80511.0,0.71467385]
[1741899128190,9.35e-05,80512.0,80511.0,0.70467385]
[1741899128513,9.35e-05,80512.0,80511.0,0.71467385]
[1741899128914,0.24122948,80544.0,80539.0,0.248326]
[1741899129121,4.151e-05,80540.0,80539.0,0.260742]
[1741899129358,4.151e-05,80540.0,80538.0,0.012416]
[1741899129927,4.151e-05,80540.0,80538.0,0.260743]
[1741899130132,4.151e-05,80540.0,80539.0,0.012416]
[1741899131391,4.151e-05,80540.0,80539.0,0.017416]
[1741899131592,4.151e-05,80540.0,80539.0,0.11435685]
[1741899132717,4.151e-05,80540.0,80539.0,0.10935685]
[1741899132925,4.151e-05,80540.0,80539.0,0.012416]
[1741899133105,4.151e-05,80540.0,80539.0,0.006]
[1741899133307,4.151e-05,80540.0,80539.0,0.018416]
[1741899134522,0.01245751,80540.0,80539.0,0.006]
[1741899134730,0.31813015,80540.0,80539.0,0.009]
[1741899134933,0.30605195,80540.0,80539.0,0.009]
[1741899135136,0.31846795,80540.0,80539.0,0.009]
[1741899135537,0.31846795,80540.0,80539.0,0.006]
[1741899135831,0.01846795,80540.0,80539.0,0.006]
[1741899136103,0.248341,80535.0,80531.0,0.248349]
[1741899136305,0.248345,80534.0,80527.0,0.248361]
[1741899136422,0.248351,80532.0,80525.0,0.248368]
[1741899136629,0.012418,80526.0,80516.0,0.012419]
[1741899136875,0.012419,80521.0,80515.0,0.1454]
[1741899137028,0.248379,80522.0,80514.0,0.248403]
[1741899137234,0.248382,80521.0,80513.0,0.260824]
[1741899137459,0.25401508,80521.0,80513.0,0.260824]
[1741899137795,0.00563308,80521.0,80514.0,0.01242]
[1741899137993,0.00563308,80521.0,80516.0,0.002]
[1741899138435,0.00563308,80521.0,80514.0,0.01242]
[1741899138788,0.00563308,80521.0,80516.0,0.248395]
[1741899138994,0.248385,80520.0,80515.0,0.2484]
[1741899139189,0.00563308,80521.0,80517.0,0.248394]
[1741899139433,0.248361,80528.0,80522.0,0.012418]
[1741899139642,0.248346,80533.0,80528.0,0.248358]
[1741899139850,0.01279531,80540.0,80529.0,0.012417]
[1741899140028,0.248333,80537.0,80530.0,0.012417]
[1741899140240,0.248333,80537.0,80533.0,0.248342]
[1741899140636,0.01279531,80540.0,80534.0,0.24834]
[1741899140637,0.248327,80539.0,80534.0,0.24834]
[1741899140840,0.00037931,80540.0,80535.0,0.248339]
[1741899141051,0.01279531,80540.0,80532.0,0.012417]
[1741899141577,0.012416,80539.0,80531.0,0.248348]
[1741899141771,0.012416,80539.0,80524.0,0.260788]
[1741899141911,0.248347,80533.0,80527.0,0.26078]
[1741899142124,0.248331,80538.0,80531.0,0.248351]
[1741899142360,0.24870431,80540.0,80534.0,0.012417]
[1741899142707,0.00037931,80540.0,80534.0,0.012417]
[1741899142918,0.00037931,80540.0,80539.0,0.260742]
[1741899143342,0.24870331,80540.0,80536.0,0.012416]
[1741899143617,0.24870331,80540.0,80535.0,0.248339]
[1741899143814,0.24870331,80540.0,80538.0,0.248327]
[1741899143815,0.00037931,80540.0,80538.0,0.248327]
[1741899144162,0.00037931,80540.0,80534.0,0.012417]
[1741899144362,0.248332,80538.0,80533.0,0.012417]
[1741899145215,0.248366,80527.0,80523.0,0.14496]
[1741899145391,0.248341,80535.0,80530.0,0.248352]
[1741899145704,0.248341,80535.0,80533.0,0.004]
[1741899146121,0.248328,80539.0,80534.0,0.012417]
[1741899146304,0.00669388,80538.0,80534.0,0.012417]
[1741899147147,0.25502588,80538.0,80533.0,0.017417]
[1741899147297,0.012416,80536.0,80533.0,0.005]
[1741899147702,0.00669101,80535.0,80533.0,0.005]
[1741899148221,0.012416,80539.0,80531.0,0.0001689]
[1741899148422,0.00669101,80534.0,80533.0,0.012417]
[1741899148642,0.00037931,80540.0,80533.0,0.012417]
[1741899148787,0.24870431,80540.0,80533.0,0.260762]
[1741899148987,0.00669101,80539.0,80535.0,0.248338]
[1741899149465,0.00669101,80539.0,80537.0,0.248332]
[1741899149605,0.00669101,80539.0,80538.0,0.012416]
[1741899149812,0.00037931,80540.0,80539.0,0.260742]
[1741899150261,0.00707032,80540.0,80539.0,0.260742]
[1741899150439,0.00037931,80540.0,80539.0,0.260742]
[1741899150639,0.00707032,80540.0,80539.0,0.260742]
[1741899150866,0.00037931,80540.0,80539.0,0.260742]
[1741899151042,0.00707032,80540.0,80539.0,0.260742]
[1741899151265,0.00037931,80540.0,80539.0,0.260742]
[1741899151467,0.00707032,80540.0,80539.0,0.260742]
[1741899151630,0.00037931,80540.0,80539.0,0.260742]
[1741899151836,0.00707032,80540.0,80539.0,0.260742]
[1741899152036,0.00037931,80540.0,80539.0,0.260742]
[1741899152237,0.02820633,80540.0,80539.0,0.260742]
[1741899152438,0.01984257,80540.0,80539.0,0.265742]
[1741899152641,0.02653358,80540.0,80539.0,0.265742]
[1741899152842,0.02653358,80540.0,80539.0,0.005]
[1741899153061,0.01984257,80540.0,80539.0,0.005]
[1741899153236,0.02656745,80540.0,80539.0,0.005]
[1741899153469,0.01952019,80540.0,80539.0,0.005]
[1741899153885,0.00710419,80540.0,80539.0,0.005]
[1741899154846,0.00710419,80540.0,80539.0,0.017416]
[1741899155064,0.00710419,80540.0,80539.0,0.005]
[1741899156280,0.01952019,80540.0,80539.0,0.005]
[1741899156477,0.03898423,80540.0,80539.0,0.005]
[1741899157322,0.260767,80532.0,80526.0,0.260782]
[1741899157525,0.012416,80537.0,80530.0,0.260769]
[1741899157916,0.25506078,80536.0,80531.0,0.248349]
[1741899158121,0.25506078,80536.0,80524.0,0.012418]
[1741899158122,0.248366,80527.0,80521.0,0.012419]
[1741899158270,0.260792,80524.0,80519.0,0.012419]
[1741899158474,0.260787,80526.0,80520.0,0.260804]
[1741899158813,0.260775,80529.0,80523.0,0.012418]
[1741899159048,0.260775,80529.0,80523.0,0.260791]
[1741899159259,0.01946603,80525.0,80523.0,0.012418]
[1741899159390,0.01946603,80525.0,80522.0,0.2609649]
[1741899159799,0.00672478,80524.0,80522.0,0.2609649]
[1741899161236,0.00672478,80524.0,80523.0,0.005]
[1741899161237,0.26751778,80524.0,80523.0,0.005]
[1741899161664,0.012418,80523.0,80522.0,0.0001689]
[1741899161865,0.012418,80523.0,80522.0,0.0051689]
[1741899162072,0.01911433,80523.0,80522.0,0.0051689]
[1741899162272,0.01911433,80523.0,80522.0,0.0001689]
[1741899163457,0.01911433,80523.0,80522.0,0.0011689]
[1741899164346,0.01911433,80523.0,80522.0,0.0061689]
[1741899165159,0.00669633,80523.0,80522.0,0.0061689]
[1741899166425,0.02616371,80523.0,80522.0,0.0061689]
[1741899166584,0.02616371,80523.0,80522.0,0.2545479]
[1741899166785,0.01946738,80523.0,80522.0,0.2669659]
[1741899167340,0.01946738,80523.0,80522.0,0.3435659]
[1741899167739,0.01946738,80523.0,80522.0,0.3901659]
[1741899168931,0.01946738,80523.0,80522.0,0.2669659]
[1741899173351,0.01946738,80523.0,80522.0,0.0061689]
[1741899173700,0.01946738,80523.0,80522.0,0.0185869]
[1741899173946,0.02694775,80523.0,80522.0,0.0185869]
[1741899174938,0.02694775,80523.0,80522.0,0.0061689]
[1741899175761,0.00748037,80523.0,80522.0,0.0061689]
[1741899175958,0.289868,80526.0,80522.0,0.0061689]
[1741899176137,0.00748037,80525.0,80522.0,0.0061689]
[1741899176969,0.248373,80524.0,80522.0,0.0061689]
[1741899177367,0.01989837,80523.0,80522.0,0.0061689]
[1741899177780,0.01989837,80523.0,80522.0,0.0001689]
[1741899178476,0.01989837,80523.0,80522.0,0.0041689]
[1741899179083,0.01989837,80523.0,80522.0,0.0051689]
[1741899179396,0.01989837,80523.0,80522.0,0.0011689]
[1741899179604,0.01989837,80523.0,80522.0,0.0061689]
[1741899180055,0.03936696,80523.0,80522.0,0.0061689]
[1741899183357,0.01989837,80523.0,80522.0,0.0061689]
[1741899187399,0.00748037,80523.0,80522.0,0.0061689]
[1741899187800,0.0415,80526.0,80525.0,0.012418]
[1741899188000,0.0415,80526.0,80525.0,0.260788]
[1741899188994,0.0415,80526.0,80523.0,0.248376]
[1741899189241,0.0415,80526.0,80522.0,0.0125869]
[1741899189242,0.053918,80526.0,80525.0,0.004]
[1741899189446,0.012418,80525.0,80522.0,0.0001689]
[1741899189771,0.260794,80523.0,80522.0,0.0001689]
[1741899191540,0.260794,80523.0,80522.0,0.0041689]
[1741899191764,0.260794,80523.0,80522.0,0.0001689]
[1741899191969,0.260794,80523.0,80522.0,0.0011689]
[1741899192765,0.260794,80523.0,80522.0,0.0061689]
[1741899193489,0.260794,80523.0,80522.0,0.0018089]
[1741899195466,0.260794,80523.0,80522.0,0.0019778]
[1741899196904,0.26829251,80523.0,80522.0,0.0019778]
[1741899197697,0.28776094,80523.0,80522.0,0.0019778]
[1741899199126,0.27534294,80523.0,80522.0,0.0019778]
[1741899200745,0.28776094,80523.0,80522.0,0.0019778]
[1741899206483,0.26829251,80523.0,80522.0,0.0019778]
[1741899206847,0.30979251,80523.0,80522.0,0.0019778]
[1741899207046,0.31013031,80523.0,80522.0,0.0019778]
[1741899208372,0.70936137,80523.0,80522.0,0.0019778]
[1741899208573,0.70936137,80523.0,80522.0,8e-07]
[1741899208776,0.78516137,80523.0,80522.0,8e-07]
[1741899208977,0.79970222,80523.0,80522.0,8e-07]
[1741899209200,0.86807423,80523.0,80522.0,8e-07]
[1741899209738,0.86807423,80523.0,80487.0,0.0001689]
[1741899209739,0.248478,80490.0,80487.0,0.0001689]
[1741899210029,0.00737947,80489.0,80487.0,0.0001689]
[1741899210592,0.02685337,80489.0,80487.0,0.0001689]
[1741899210793,0.05068228,80489.0,80487.0,0.0001689]
[1741899211001,0.05068228,80489.0,80487.0,0.0042618]
[1741899211199,0.012424,80488.0,80487.0,0.0042618]
[1741899211595,0.01979928,80488.0,80487.0,0.0002618]
[1741899211970,0.01979928,80488.0,80487.0,0.0092618]
[1741899212146,0.01979928,80488.0,80487.0,0.0042618]
[1741899212555,0.02079928,80488.0,80487.0,0.0092618]
[1741899212958,0.01979928,80488.0,80487.0,0.0042618]
[1741899213155,0.01979928,80488.0,80487.0,0.0092618]
[1741899213377,0.02079928,80488.0,80487.0,0.0052618]
[1741899213582,0.02079928,80488.0,80487.0,0.0082618]
[1741899214316,0.38214989,80488.0,80487.0,0.0082618]
[1741899214635,0.32079928,80488.0,80487.0,0.0082618]
[1741899215625,0.30737528,80488.0,80487.0,0.0032618]
[1741899215827,0.00745337,80488.0,80487.0,0.0072618]
[1741899215984,0.00745337,80488.0,80487.0,0.0032618]
[1741899216185,0.001,80488.0,80487.0,0.0032618]
[1741899216394,0.00845337,80488.0,80487.0,0.0042618]
[1741899216795,0.00845337,80488.0,80487.0,0.0062618]
[1741899217044,0.02792985,80488.0,80487.0,0.0062618]
[1741899217252,0.02792985,80488.0,80487.0,0.1007858]
[1741899217426,0.02147648,80488.0,80487.0,0.1007858]
[1741899217628,0.02147648,80488.0,80487.0,0.0987858]
[1741899218037,0.02147648,80488.0,80487.0,0.1007858]
[1741899219436,0.02147648,80488.0,80487.0,0.0062618]
[1741899219719,0.02782344,80488.0,80487.0,0.0062618]
[1741899220054,0.02782344,80488.0,80487.0,0.0186858]
[1741899220259,0.02147648,80488.0,80487.0,0.0186858]
[1741899220969,0.02782344,80488.0,80487.0,0.0186858]
[1741899223363,0.248453,80498.0,80492.0,0.24847]
[1741899223676,0.00634696,80497.0,80492.0,0.24847]
[1741899224302,0.00634696,80497.0,80493.0,0.248467]
[1741899224504,0.00634696,80497.0,80494.0,0.012423]
[1741899224728,0.02145397,80498.0,80497.0,0.260878]
[1741899224903,0.248437,80504.0,80497.0,0.260878]
[1741899226201,0.248437,80504.0,80477.0,0.2611118]
[1741899226202,0.248484,80488.0,80477.0,0.2611118]
[1741899226371,0.248484,80488.0,80481.0,0.0125939]
[1741899226589,0.24848,80490.0,80483.0,0.248499]
[1741899226848,0.248469,80493.0,80486.0,0.24849]
[1741899227169,0.248484,80488.0,80481.0,0.2610989]
[1741899227372,0.24848,80490.0,80483.0,0.248497]
[1741899227575,0.00559991,80489.0,80484.0,0.260917]
[1741899227975,0.00559991,80489.0,80484.0,0.012424]
[1741899228174,0.02507512,80489.0,80484.0,0.012424]
[1741899228396,0.02507512,80489.0,80487.0,0.0062618]
[1741899228605,0.248484,80488.0,80487.0,0.0002618]
[1741899229036,0.248484,80488.0,80487.0,0.0052618]
[1741899229037,0.25408391,80488.0,80487.0,0.0052618]
[1741899229207,0.00559991,80488.0,80487.0,0.0052618]
[1741899229412,0.26795821,80489.0,80487.0,0.0052618]
[1741899229677,0.00559991,80488.0,80487.0,0.0052618]
[1741899229949,0.00559991,80488.0,80487.0,0.0072618]
[1741899230680,0.01802391,80488.0,80487.0,0.0052618]
[1741899230876,0.01802391,80488.0,80487.0,0.0072618]
[1741899231186,0.00559991,80488.0,80487.0,0.0022618]
[1741899231479,0.00559991,80488.0,80487.0,0.0082618]
[1741899233247,0.01802391,80488.0,80487.0,0.0082618]
[1741899233846,0.00559991,80488.0,80487.0,0.0082618]
[1741899235344,0.24848,80490.0,80487.0,0.0082618]
[1741899235867,0.25405031,80489.0,80487.0,0.0082618]
[1741899236416,0.25405031,80489.0,80487.0,0.0062618]
[1741899236767,0.25405031,80489.0,80487.0,0.0072618]
[1741899236942,0.00556731,80489.0,80487.0,0.0072618]
[1741899237153,0.00556731,80489.0,80487.0,0.0062618]
[1741899237362,0.00556731,80489.0,80488.0,0.339908]
[1741899237714,0.019475,80489.0,80488.0,0.339908]
[1741899238149,0.019475,80489.0,80488.0,0.327484]
[1741899238861,0.02497841,80489.0,80488.0,0.344908]
[1741899239603,0.019475,80489.0,80488.0,0.346908]
[1741899239785,0.019475,80489.0,80488.0,0.393708]
[1741899240378,0.019475,80489.0,80488.0,0.40824885]
[1741899240613,0.019475,80489.0,80488.0,0.70824885]
[1741899240994,0.019475,80489.0,80488.0,0.70324885]
[1741899241566,0.019475,80489.0,80488.0,0.70924885]
[1741899241765,0.019475,80489.0,80488.0,0.70324885]
[1741899241978,0.019475,80489.0,80488.0,0.138224]
[1741899242537,0.019475,80489.0,80488.0,0.146224]
[1741899242739,0.019475,80489.0,80488.0,0.087]
[1741899242954,0.02509946,80489.0,80488.0,0.006]
[1741899243152,0.02509946,80489.0,80488.0,0.01413618]
[1741899243457,0.00562446,80489.0,80488.0,0.01913618]
[1741899243831,0.00562446,80489.0,80488.0,0.01413618]
[1741899244012,0.00562446,80489.0,80488.0,0.01430518]
[1741899244213,0.00562446,80489.0,80488.0,0.00830518]
[1741899244665,0.00562446,80489.0,80488.0,0.01330518]
[1741899245074,0.00562446,80489.0,80488.0,0.01530518]
[1741899247731,0.02509974,80489.0,80488.0,0.01530518]
[1741899249404,0.02509974,80489.0,80488.0,0.02772918]
[1741899249825,0.02509974,80489.0,80488.0,0.11092918]
[1741899249826,0.01947528,80489.0,80488.0,0.11092918]
[1741899252036,0.01947528,80489.0,80488.0,0.09850518]
[1741899252219,0.248448,80500.0,80493.0,0.248466]
[1741899252461,0.000338,80503.0,80494.0,0.248463]
[1741899252665,0.000338,80503.0,80494.0,0.260886]
[1741899252858,0.248452,80499.0,80494.0,0.260886]
[1741899253968,0.000338,80503.0,80501.0,0.012422]
[1741899254173,0.000338,80503.0,80499.0,0.0462]
[1741899254465,0.000338,80503.0,80498.0,0.260875]
[1741899254667,0.000338,80503.0,80502.0,0.260863]
[1741899255171,0.000338,80503.0,80502.0,0.259863]
[1741899256117,0.000338,80503.0,80500.0,0.260866]
[1741899256321,0.248443,80502.0,80497.0,0.0783]
[1741899256638,0.00560307,80502.0,80501.0,0.260866]
[1741899256874,0.000338,80503.0,80502.0,0.012422]
[1741899257070,0.000338,80503.0,80502.0,0.016422]
[1741899257275,0.000338,80503.0,80502.0,0.012422]
[1741899258251,0.000338,80503.0,80502.0,0.017422]
[1741899259542,0.000338,80503.0,80502.0,0.02066405]
[1741899259760,0.000338,80503.0,80502.0,0.14516405]
[1741899259918,0.000338,80503.0,80502.0,0.44516405]
[1741899260121,0.000338,80503.0,80502.0,0.45846285]
[1741899260907,0.000338,80503.0,80502.0,0.45346285]
[1741899261113,0.000338,80503.0,80502.0,0.45146285]
[1741899261292,0.000338,80503.0,80502.0,0.45746285]
[1741899261500,0.000338,80503.0,80502.0,0.46346285]
[1741899262364,0.01980632,80503.0,80502.0,0.46346285]
[1741899263143,0.01980632,80503.0,80502.0,0.46098285]
[1741899263728,0.000338,80503.0,80502.0,0.46098285]
[1741899266009,0.000338,80503.0,80502.0,0.16098285]
[1741899266337,0.000338,80503.0,80502.0,0.31014285]
[1741899266843,0.01980775,80503.0,80502.0,0.31014285]
[1741899266975,0.01980775,80503.0,80502.0,0.30414285]
[1741899267613,0.01980775,80503.0,80502.0,0.31014285]
[1741899267839,0.2487168,80522.0,80515.0,0.26082]
[1741899267969,0.248387,80520.0,80515.0,0.26082]
[1741899268180,0.02521486,80521.0,80517.0,0.260813]
[1741899268521,0.01946982,80521.0,80520.0,0.012419]
[1741899268851,0.0003378,80522.0,80521.0,0.012419]
[1741899269053,0.00075309,80522.0,80521.0,0.012419]
[1741899269757,0.00075309,80522.0,80521.0,0.01366081]
[1741899270001,0.00075309,80522.0,80521.0,0.012419]
[1741899271139,0.00075309,80522.0,80521.0,0.01866077]
[1741899271394,0.02021885,80522.0,80521.0,0.01866077]
[1741899271599,0.02021885,80522.0,80521.0,0.018419]
[1741899273805,0.00075309,80522.0,80521.0,0.018419]
[1741899275179,0.53469238,80536.0,80530.0,0.248352]
[1741899275387,0.53479549,80536.0,80530.0,0.260769]
[1741899275648,0.00576114,80535.0,80530.0,0.260769]
[1741899275807,0.25410214,80535.0,80530.0,0.260769]
[1741899276624,0.25410214,80535.0,80530.0,0.261769]
[1741899276812,0.01946538,80534.0,80530.0,0.261769]
[1741899277013,0.01946538,80534.0,80530.0,0.260769]
[1741899277214,0.01946538,80534.0,80530.0,0.261769]
[1741899277414,0.00576114,80533.0,80530.0,0.260769]
[1741899277816,0.00576114,80533.0,80530.0,0.249352]
[1741899278016,0.00576114,80533.0,80530.0,0.248352]
[1741899278504,0.00676114,80533.0,80530.0,0.248352]
[1741899279526,0.00676114,80533.0,80530.0,0.250352]
[1741899279719,0.00676114,80533.0,80530.0,0.248352]
[1741899279908,0.00676114,80533.0,80530.0,0.260769]
[1741899280122,0.00676114,80533.0,80532.0,0.260765]
[1741899280263,0.00676114,80533.0,80532.0,0.012417]
[1741899280469,0.00676114,80533.0,80530.0,0.002]
[1741899280706,0.248348,80532.0,80530.0,0.002]
[1741899281107,0.00576114,80531.0,80530.0,0.002]
[1741899282511,0.25411414,80531.0,80526.0,0.260782]
[1741899282715,0.248375,80524.0,80519.0,0.3268549]
[1741899282882,0.00588153,80523.0,80519.0,0.2485549]
[1741899283086,0.248354,80530.0,80519.0,0.2485549]
[1741899283322,0.00588153,80529.0,80519.0,0.2485549]
[1741899283591,0.00588153,80529.0,80521.0,0.24838]
[1741899283892,0.248357,80529.0,80522.0,0.248377]
[1741899284092,0.248364,80527.0,80522.0,0.248377]
[1741899284303,0.248357,80529.0,80522.0,0.248377]
[1741899284507,0.0003378,80535.0,80534.0,0.012417]
[1741899284725,0.0003378,80535.0,80531.0,0.260766]
[1741899284924,0.0003378,80535.0,80529.0,0.260772]
[1741899285127,0.24835,80532.0,80524.0,0.24837]
[1741899285425,0.248369,80526.0,80519.0,0.2609759]
[1741899285826,0.248369,80526.0,80520.0,0.260802]
[1741899286613,0.00587448,80525.0,80521.0,0.24838]
[1741899286796,0.00587448,80525.0,80521.0,0.260799]
[1741899287065,0.248376,80523.0,80520.0,0.005]
[1741899287323,0.248382,80521.0,80520.0,0.005]
[1741899287536,0.25425648,80521.0,80520.0,0.001]
[1741899287671,0.25425648,80521.0,80519.0,0.0001689]
[1741899289225,0.25425648,80521.0,80520.0,0.005]
[1741899289411,0.25425648,80521.0,80520.0,0.008]
[1741899289605,0.25425648,80521.0,80520.0,0.003]
[1741899290048,0.25425648,80521.0,80519.0,0.0061689]
[1741899290225,0.25425648,80521.0,80519.0,0.0091689]
[1741899290427,0.25425648,80521.0,80519.0,0.0031689]
[1741899290815,0.25425648,80521.0,80520.0,0.006]
[1741899291010,0.25425648,80521.0,80520.0,0.009]
[1741899291928,0.25425648,80521.0,80520.0,0.003]
[1741899292316,0.25425648,80521.0,80519.0,0.0001689]
[1741899292317,0.25425648,80521.0,80519.0,0.0061689]
[1741899292773,0.25425648,80521.0,80519.0,0.0031689]
[1741899292996,0.25425648,80521.0,80520.0,0.006]
[1741899293326,0.25425648,80521.0,80519.0,0.0031689]
[1741899293577,0.25425648,80521.0,80519.0,0.0091689]
[1741899293767,0.25425648,80521.0,80519.0,0.0031689]
[1741899293925,0.25425648,80521.0,80519.0,0.0001689]
[1741899294377,0.25425648,80521.0,80520.0,0.003]
[1741899295718,0.25425648,80521.0,80520.0,0.006]
[1741899296224,0.25425648,80521.0,80519.0,0.0021689]
[1741899296379,0.25425648,80521.0,80520.0,0.005]
[1741899296798,0.27372455,80521.0,80520.0,0.005]
[1741899297140,0.27372455,80521.0,80520.0,0.007]
[1741899298126,0.02534255,80521.0,80520.0,0.007]
[1741899298300,0.02534255,80521.0,80520.0,0.267804]
[1741899298503,0.01946807,80521.0,80520.0,0.267804]
[1741899299314,0.01946807,80521.0,80520.0,0.315804]
[1741899299704,0.01946807,80521.0,80520.0,0.267804]
[1741899305365,0.0003378,80528.0,80526.0,0.248366]
[1741899305573,0.0003378,80528.0,80525.0,0.012418]
[1741899305772,0.00585265,80527.0,80524.0,0.248372]
[1741899306173,0.00585265,80527.0,80524.0,0.26079]
[1741899306729,0.00585265,80527.0,80526.0,0.260784]
[1741899307030,0.0003378,80528.0,80527.0,0.012418]
[1741899307333,0.00619053,80528.0,80524.0,0.012418]
[1741899307490,0.0003378,80528.0,80526.0,0.003]
[1741899308107,0.0003378,80527.0,80526.0,0.003]
[1741899308313,0.00619339,80527.0,80526.0,0.003]
[1741899308515,0.0003378,80527.0,80526.0,0.015418]
[1741899308708,0.0003378,80527.0,80526.0,0.012418]
[1741899308914,0.00619339,80527.0,80526.0,0.012418]
[1741899309681,0.0003378,80527.0,80526.0,0.012418]
[1741899310446,0.0003378,80527.0,80526.0,0.016418]
[1741899310944,0.0003378,80527.0,80526.0,0.004]
[1741899311149,0.00619339,80527.0,80526.0,0.004]
[1741899311334,0.26697439,80527.0,80526.0,0.004]
[1741899311543,0.98322877,80527.0,80526.0,0.004]
[1741899311739,0.98322877,80527.0,80526.0,1e-06]
[1741899312306,1.00825276,80527.0,80526.0,1e-06]
[1741899312707,0.560801,80521.0,80520.0,0.0001689]
[1741899312900,0.566648,80521.0,80520.0,0.0001689]
[1741899315958,0.566648,80521.0,80520.0,0.0031689]
[1741899318843,0.57600262,80521.0,80520.0,0.0031689]
[1741899319781,0.31520162,80521.0,80520.0,0.0031689]
[1741899319992,0.59899334,80521.0,80520.0,0.0031689]
[1741899320418,0.57600262,80521.0,80520.0,0.0031689]
[1741899321813,0.59547283,80521.0,80520.0,0.0031689]
[1741899322546,0.64207283,80521.0,80520.0,0.0031689]
[1741899322751,0.58305383,80521.0,80520.0,0.0031689]
[1741899322909,0.33467183,80521.0,80520.0,0.0031689]
[1741899323101,0.03467183,80521.0,80520.0,0.0031689]
[1741899323311,0.01520162,80521.0,80520.0,0.0031689]
[1741899323842,0.005847,80521.0,80520.0,0.0031689]
[1741899324065,0.005847,80521.0,80520.0,0.0155879]
[1741899324268,0.39831488,80527.0,80526.0,0.260784]
[1741899324478,0.1119605,80527.0,80526.0,0.341784]
[1741899325521,3e-07,80528.0,80527.0,0.012418]
[1741899325729,3e-07,80528.0,80527.0,0.45580037]
[1741899325922,3e-07,80528.0,80527.0,0.45455885]